bitfinex-derivatives/quotes_ETHF0:USTF0_20250209
["timestamp","ask_amount","ask_price","bid_price","bid_amount"]
[1739119157673,0.6031,2654.7,2654.4,3.7874]
[1739119158172,4.03863945,2654.6,2654.4,3.7874]
[1739119158370,0.6031,2654.7,2654.4,3.7874]
[1739119158668,0.0056443,2654.8,2654.5,3.34530501]
[1739119159662,0.0056443,2654.8,2654.7,3.2078]
[1739119160672,3.2078,2655.5,2654.7,9.2078]
[1739119160860,1.667,2655.7,2655.3,3.34530501]
[1739119161065,1.7157,2655.8,2655.4,0.5745]
[1739119161267,1.7157,2655.8,2655.4,1.1239]
[1739119161467,3.97244685,2655.7,2655.4,1.7111]
[1739119161671,1.1424,2655.8,2655.4,1.7111]
[1739119161871,1.1480443,2655.8,2655.6,3.34530501]
[1739119162067,0.5616443,2655.8,2655.6,3.34530501]
[1739119162372,0.0056443,2655.8,2655.6,6.55310501]
[1739119164474,4.20394548,2655.7,2655.6,3.34530501]
[1739119164669,4.78074548,2655.7,2655.6,44.14530501]
[1739119165264,4.78074548,2655.7,2655.6,3.34530501]
[1739119167471,4.78074548,2655.7,2655.6,6.55310501]
[1739119168276,4.20394548,2655.7,2655.6,6.55310501]
[1739119168477,0.0056443,2655.8,2655.6,6.55310501]
[1739119177875,0.0056443,2655.8,2655.7,40.8]
[1739119179474,0.0056443,2655.8,2655.7,44.0078]
[1739119180179,0.0056443,2655.8,2655.7,3.2078]
[1739119180776,0.0056443,2655.8,2655.7,6.1678]
[1739119182676,0.0056443,2655.8,2655.7,3.2078]
[1739119182881,1.1177,2656.4,2656.3,3.34530501]
[1739119182882,0.5578,2656.4,2656.3,3.34530501]
[1739119189092,0.5578,2656.4,2656.1,3.2078]
[1739119189391,4.7924009,2656.4,2656.1,3.2078]
[1739119191394,4.7924009,2656.4,2656.3,3.34530501]
[1739119194400,4.7924009,2656.4,2656.1,3.2078]
[1739119199504,4.7924009,2656.4,2656.2,0.5897]
[1739119201803,4.7924009,2656.4,2656.3,3.34530501]
[1739119202000,4.7924009,2656.4,2656.3,3.91080501]
[1739119203807,4.7924009,2656.4,2656.1,44.0078]
[1739119204005,4.7924009,2656.4,2656.1,44.5733]
[1739119204804,4.2346009,2656.4,2656.3,3.34530501]
[1739119206305,0.5712443,2656.6,2656.3,3.34530501]
[1739119206505,0.0056443,2656.6,2656.4,0.554]
[1739119206706,0.0056443,2656.6,2656.5,0.5785]
[1739119208909,0.0056443,2656.6,2656.3,3.34530501]
[1739119209210,4.2291032,2656.6,2656.1,3.7721]
[1739119209401,0.5644,2656.5,2656.1,3.7721]
[1739119209605,1.1514,2656.5,2656.1,3.7721]
[1739119209906,3.9482896,2656.4,2656.3,3.34530501]
[1739119210104,0.0056443,2656.6,2656.3,3.34530501]
[1739119210307,0.0056443,2656.6,2656.4,3.7972]
[1739119210507,0.0056443,2656.6,2656.5,0.5616]
[1739119210708,0.0056443,2656.6,2656.5,1.1271]
[1739119212811,1.1614,2657.4,2656.5,10.47240501]
[1739119213009,1.1614,2657.4,2657.1,3.34530501]
[1739119213313,4.07305309,2657.3,2657.1,3.34530501]
[1739119213513,1.1614,2657.4,2657.1,3.34530501]
[1739119213514,0.5782,2657.4,2657.1,3.34530501]
[1739119213716,0.5504,2657.6,2657.3,3.2078]
[1739119213908,0.5640443,2657.7,2657.4,3.34530501]
[1739119214214,4.36355276,2657.5,2657.4,3.34530501]
[1739119214514,0.5913,2657.6,2657.2,0.0056443]
[1739119215010,4.23346432,2657.5,2657.4,3.34530501]
[1739119215218,0.0056443,2657.7,2657.4,3.34530501]
[1739119215417,0.0056443,2657.7,2657.5,1.1372]
[1739119216216,0.0056443,2657.7,2657.6,0.5687]
[1739119218016,0.0056443,2657.7,2657.6,3.7765]
[1739119220416,2.2308,2658.6,2657.6,7.12180501]
[1739119220611,1.1786,2658.5,2658.2,3.34530501]
[1739119220816,5.2299981,2658.5,2657.9,6.55310501]
[1739119221019,3.2078,2658.4,2657.9,6.55310501]
[1739119221410,4.29073592,2658.3,2657.9,6.55310501]
[1739119222007,4.29073592,2658.3,2658.0,0.5673]
[1739119223816,0.0056443,2658.4,2658.2,3.34530501]
[1739119225926,0.0056443,2658.4,2658.0,0.5673]
[1739119226221,4.25576876,2658.3,2657.9,6.55310501]
[1739119227619,4.25576876,2658.3,2658.0,0.5753]
[1739119229426,4.25576876,2658.3,2657.9,6.55310501]
[1739119234129,4.25576876,2658.3,2658.2,3.34530501]
[1739119236738,7.46356876,2658.3,2657.6,6.55310501]
[1739119237028,7.46356876,2658.3,2657.2,3.2134443]
[1739119237029,3.2078,2658.0,2657.2,3.2134443]
[1739119237228,3.2078,2657.7,2657.2,0.0056443]
[1739119237426,0.5801,2657.6,2657.2,0.0056443]
[1739119237628,4.89816416,2657.6,2657.2,0.0056443]
[1739119241636,6.56216416,2657.6,2657.4,3.2078]
[1739119242535,1.1397,2657.9,2657.4,3.2078]
[1739119242739,0.5529,2657.9,2657.8,3.34530501]
[1739119243139,0.5529,2657.9,2657.8,44.14530501]
[1739119244034,1.664,2658.1,2657.8,3.34530501]
[1739119244231,1.664,2658.1,2657.8,6.55310501]
[1739119244437,1.664,2658.1,2657.9,0.5573]
[1739119244636,0.583,2658.3,2657.9,0.5573]
[1739119244844,0.583,2658.3,2658.0,1.2001]
[1739119245246,0.583,2658.3,2658.1,3.34530501]
[1739119247637,0.583,2658.3,2658.1,6.55310501]
[1739119249550,1.664,2658.5,2658.1,6.55310501]
[1739119249551,3.2078,2659.1,2658.1,6.55310501]
[1739119249742,0.5843,2658.9,2658.1,47.35310501]
[1739119251550,3.8099,2659.1,2658.1,47.35310501]
[1739119251753,3.2078,2659.1,2658.1,47.64852711]
[1739119251953,3.7995,2659.1,2658.1,47.64852711]
[1739119253046,0.5702,2659.0,2658.1,6.84852711]
[1739119256759,3.2078,2658.8,2658.1,6.55310501]
[1739119256959,4.13280636,2658.3,2658.1,6.55310501]
[1739119257162,4.72730636,2658.3,2658.1,3.34530501]
[1739119257561,4.73049134,2658.3,2658.1,3.34530501]
[1739119258253,0.59768498,2658.3,2658.1,3.34530501]
[1739119259664,0.59768498,2658.3,2658.1,6.55310501]
[1739119260052,0.00318498,2658.3,2658.1,6.55310501]
[1739119262668,0.00318498,2658.3,2658.1,6.85838617]
[1739119263866,0.00318498,2658.3,2658.1,6.55310501]
[1739119268176,0.00318498,2658.3,2658.1,3.34530501]
[1739119270574,0.00318498,2658.3,2658.1,6.55310501]
[1739119270773,0.00318498,2658.3,2658.2,1.1296]
[1739119272174,0.00318498,2658.3,2658.1,3.34530501]
[1739119273072,0.00318498,2658.3,2657.8,6.55310501]
[1739119273267,3.98491981,2658.2,2657.8,6.55310501]
[1739119273571,0.5481,2658.1,2657.8,6.55310501]
[1739119273975,4.78359877,2658.0,2657.8,6.55310501]
[1739119274178,0.5723,2657.9,2657.8,6.55310501]
[1739119275876,0.5481,2658.1,2657.8,6.55310501]
[1739119276478,0.5481,2658.1,2657.9,0.5949]
[1739119277279,0.5481,2658.1,2657.8,6.55310501]
[1739119277469,3.93973507,2658.0,2657.8,6.55310501]
[1739119277674,0.5481,2658.1,2657.8,6.55310501]
[1739119278882,1.16318498,2658.3,2657.9,1.1059]
[1739119279082,1.16318498,2658.3,2658.2,3.34530501]
[1739119279679,1.16318498,2658.3,2657.9,3.34530501]
[1739119279984,5.24780357,2658.3,2657.9,3.34530501]
[1739119280282,8.45560357,2658.3,2657.9,3.34530501]
[1739119282180,8.45560357,2658.3,2657.8,3.2078]
[1739119282181,8.98213357,2658.3,2657.6,3.34530501]
[1739119282381,0.52654,2658.2,2657.6,3.34530501]
[1739119282576,8.45560357,2658.3,2657.6,3.34530501]
[1739119282577,8.98213357,2658.3,2657.6,3.34530501]
[1739119282780,4.09159191,2658.1,2657.6,3.34530501]
[1739119282983,1.663,2658.0,2657.6,3.34530501]
[1739119283181,0.5738,2657.9,2657.6,3.34530501]
[1739119283383,1.171,2657.9,2657.6,4.51060501]
[1739119289284,0.5738,2657.9,2657.6,4.51060501]
[1739119290891,2.8448,2658.2,2657.6,4.51060501]
[1739119291291,1.1818,2658.2,2657.9,3.34530501]
[1739119291493,1.1818,2658.2,2658.0,0.599]
[1739119292987,0.5858,2658.2,2658.0,0.599]
[1739119293697,0.5858,2658.2,2657.9,3.34530501]
[1739119293886,0.5858,2658.2,2657.8,3.2078]
[1739119294089,4.24843565,2658.1,2657.8,3.2078]
[1739119294288,4.24843565,2658.1,2657.7,0.5684]
[1739119294792,4.24843565,2658.1,2657.5,3.2078]
[1739119295390,4.24843565,2658.1,2657.5,6.55310501]
[1739119296493,4.24843565,2658.1,2657.5,7.14320501]
[1739119296795,4.24843565,2658.1,2657.5,7.72170501]
[1739119300697,4.24843565,2658.1,2657.8,3.34530501]
[1739119300905,2.2488,2658.2,2657.8,3.34530501]
[1739119301192,4.13532263,2658.1,2657.8,3.34530501]
[1739119301590,2.2488,2658.2,2657.8,3.34530501]
[1739119302091,4.29167257,2658.1,2657.8,3.34530501]
[1739119302488,2.2488,2658.2,2657.8,3.34530501]
[1739119303195,0.5858,2658.2,2657.8,3.34530501]
[1739119304599,0.5858,2658.2,2657.8,6.55310501]
[1739119306198,0.5858,2658.2,2657.8,3.34530501]
[1739119306405,3.92878746,2658.1,2657.6,0.6001]
[1739119313409,3.92878746,2658.1,2657.7,40.8]
[1739119314507,3.92878746,2658.1,2657.6,0.6001]
[1739119315504,3.92878746,2658.1,2657.8,3.34530501]
[1739119320815,3.92878746,2658.1,2657.6,0.6001]
[1739119325521,3.92878746,2658.1,2657.8,3.34530501]
[1739119326016,3.92878746,2658.1,2657.6,0.6001]
[1739119327320,3.2078,2657.9,2657.5,3.2078]
[1739119327525,0.5476,2657.8,2657.5,3.2078]
[1739119327819,0.5466,2657.7,2657.5,3.2078]
[1739119328024,1.663,2657.6,2657.5,3.2078]
[1739119328214,5.583299,2657.6,2657.5,3.2078]
[1739119329115,1.663,2657.6,2657.5,6.55310501]
[1739119329617,0.5466,2657.7,2657.5,6.55310501]
[1739119329816,4.8708,2658.2,2657.5,6.55310501]
[1739119330022,0.5455,2658.1,2657.8,3.34530501]
[1739119330320,4.76187376,2658.1,2657.8,3.34530501]
[1739119331621,4.76187376,2658.1,2657.6,0.5925]
[1739119332320,3.2078,2657.9,2657.5,6.55310501]
[1739119332622,0.5982,2657.8,2657.5,6.55310501]
[1739119332823,5.1452432,2657.8,2657.5,6.55310501]
[1739119335131,5.1452432,2657.8,2657.5,3.2078]
[1739119337326,0.00291583,2658.0,2657.5,6.55310501]
[1739119337519,0.00291583,2658.0,2657.8,3.34530501]
[1739119338429,0.00291583,2658.0,2657.9,0.5643]
[1739119339021,0.00291583,2658.0,2657.8,3.34530501]
[1739119341125,0.00291583,2658.0,2657.8,6.55310501]
[1739119351735,0.00291583,2658.0,2657.8,13.07971501]
[1739119351940,0.0056443,2658.4,2657.8,13.07971501]
[1739119351941,0.0056443,2658.4,2657.8,13.07970501]
[1739119352136,0.0056443,2658.4,2658.3,6.55310501]
[1739119352438,0.0056443,2658.4,2658.3,47.35310501]
[1739119356131,0.0056443,2658.4,2658.3,47.65123839]
[1739119356337,0.0056443,2658.4,2658.3,47.35310501]
[1739119358141,0.0056443,2658.4,2658.3,47.65770142]
[1739119359845,0.5727,2659.0,2658.3,47.65770142]
[1739119360037,4.8688,2659.1,2658.9,3.34530501]
[1739119361246,3.2078,2659.1,2658.9,3.34530501]
[1739119364841,3.4523,2659.2,2658.9,3.34530501]
[1739119365152,4.16375688,2659.1,2658.9,3.34530501]
[1739119365748,3.4523,2659.2,2658.9,3.34530501]
[1739119368052,1.7913,2659.2,2658.9,3.34530501]
[1739119371741,4.11929523,2659.1,2658.9,3.34530501]
[1739119371947,4.11929523,2659.1,2658.7,0.0056443]
[1739119373352,3.2078,2659.0,2658.7,0.0056443]
[1739119373853,4.28603062,2658.9,2658.7,0.0056443]
[1739119374053,0.5942,2658.8,2658.7,0.0056443]
[1739119374253,1.1877,2658.8,2658.7,0.0056443]
[1739119374553,5.41068916,2658.8,2658.7,0.0056443]
[1739119374953,7.07168916,2658.8,2658.7,0.0056443]
[1739119383057,1.1877,2658.8,2658.7,0.0056443]
[1739119383855,4.575,2659.1,2658.7,0.0056443]
[1739119384155,5.43473269,2659.0,2658.7,0.0056443]
[1739119384554,1.1535,2659.0,2658.7,0.0056443]
[1739119387454,4.34446551,2658.9,2658.7,0.0056443]
[1739119389957,1.1535,2659.0,2658.7,0.0056443]
[1739119392065,3.96274081,2658.9,2658.7,0.0056443]
[1739119396369,2.8135,2659.0,2658.7,1.1288443]
[1739119396765,2.8135,2659.0,2658.8,0.5655]
[1739119397765,7.15233426,2658.9,2658.7,0.0056443]
[1739119397963,7.67873426,2658.9,2658.7,0.0056443]
[1739119398762,7.15233426,2658.9,2658.7,0.0056443]
[1739119404076,1.66,2658.8,2658.7,0.0056443]
[1739119404474,5.72516911,2658.8,2658.7,0.0056443]
[1739119410682,5.72516911,2658.8,2658.1,41.3655]
[1739119410883,3.2078,2658.5,2658.1,0.5655]
[1739119411081,1.1737,2658.4,2658.1,0.5655]
[1739119411388,5.17286479,2658.4,2658.1,0.5655]
[1739119416388,5.17286479,2658.4,2658.0,0.0056443]
[1739119417697,3.99916479,2658.4,2658.2,3.34530501]
[1739119417887,3.99916479,2658.4,2658.3,0.5672]
[1739119418390,3.99916479,2658.4,2658.2,3.34530501]
[1739119418586,3.99916479,2658.4,2658.1,0.5672]
[1739119419586,3.99916479,2658.4,2658.2,1.49478868]
[1739119422695,1.66,2658.3,2658.2,1.49478868]
[1739119423491,5.64273331,2658.3,2658.2,1.49478868]
[1739119425093,1.66,2658.3,2658.2,1.49478868]
[1739119426493,4.574,2658.7,2658.2,1.49478868]
[1739119426690,4.574,2658.7,2658.6,1.49478868]
[1739119428495,2.914,2658.7,2658.6,1.49478868]
[1739119430289,4.8678,2658.8,2658.6,1.49478868]
[1739119430690,4.8678,2658.8,2658.7,0.565]
[1739119431895,1.66,2658.8,2658.7,0.565]
[1739119437301,4.8678,2658.8,2658.7,0.565]
[1739119438799,1.66,2658.8,2658.7,0.565]
[1739119440098,1.66,2658.8,2658.6,1.49478868]
[1739119440301,1.7397,2658.7,2658.6,1.49478868]
[1739119440490,1.7397,2658.7,2658.4,1.49478868]
[1739119440694,7.37333282,2658.7,2658.2,1.49478868]
[1739119440895,7.89978282,2658.7,2658.2,1.49478868]
[1739119441093,7.37333282,2658.7,2658.2,1.49478868]
[1739119441407,2.02127868,2658.5,2658.1,3.2078]
[1739119441589,2.02127868,2658.5,2658.0,1.50043298]
[1739119441590,3.2078,2658.2,2658.0,1.50043298]
[1739119441794,1.7397,2658.1,2658.0,1.50043298]
[1739119441993,6.09566355,2658.1,2658.0,1.50043298]
[1739119443099,6.09566355,2658.1,2658.0,0.0056443]
[1739119443506,6.09566355,2658.1,2658.0,1.50043298]
[1739119443706,6.09566355,2658.1,2658.0,0.0056443]
[1739119448916,9.30346355,2658.1,2658.0,0.0056443]
[1739119452615,19.17061043,2658.1,2657.3,0.5768]
[1739119452815,3.2078,2657.7,2657.3,0.5856]
[1739119453016,3.3667,2657.6,2657.3,0.5856]
[1739119453212,7.30490969,2657.6,2657.3,0.5856]
[1739119454607,7.30490969,2657.6,2657.4,3.34058688]
[1739119463719,7.30490969,2657.6,2657.5,1.49553688]
[1739119471629,7.30490969,2657.6,2657.3,2.67193688]
[1739119474236,7.30490969,2657.6,2657.3,2.08113688]
[1739119476029,10.51270969,2657.6,2657.3,2.08113688]
[1739119476229,8.25280969,2657.6,2657.3,2.08113688]
[1739119476429,7.70620969,2657.6,2657.4,0.6043]
[1739119476831,7.70620969,2657.6,2657.5,0.5999]
[1739119479835,7.14600969,2657.6,2657.5,0.5999]
[1739119481036,7.14600969,2657.6,2657.5,2.09543688]
[1739119481729,3.93820969,2657.6,2657.5,2.09543688]
[1739119495439,3.2134443,2657.7,2657.5,2.09543688]
[1739119496749,3.2134443,2657.7,2657.5,0.5999]
[1739119497047,0.5869,2657.6,2657.5,0.5999]
[1739119497443,3.2134443,2657.7,2657.5,0.5999]
[1739119497444,3.2134443,2657.7,2657.5,2.09543688]
[1739119498343,3.94521673,2657.6,2657.2,0.0056443]
[1739119498547,1.1251,2657.5,2657.2,0.0056443]
[1739119498751,1.712,2657.5,2657.2,0.0056443]
[1739119498949,3.94521673,2657.4,2657.3,1.49553688]
[1739119499551,1.712,2657.5,2657.3,1.49553688]
[1739119501451,1.712,2657.5,2657.2,1.1576443]
[1739119502144,4.21083837,2657.4,2657.2,0.5885443]
[1739119505454,4.21083837,2657.4,2657.3,1.49553688]
[1739119509353,4.21083837,2657.4,2657.2,0.0056443]
[1739119509553,1.49553688,2657.3,2656.5,2.09133688]
[1739119509757,3.2078,2656.9,2656.5,1.49553688]
[1739119509956,1.7709,2656.8,2656.5,1.49553688]
[1739119510152,7.19405981,2656.8,2656.3,1.49553688]
[1739119510552,7.19405981,2656.8,2656.1,3.7859]
[1739119510553,1.49553688,2656.4,2656.1,4.70333688]
[1739119510753,0.6029,2656.3,2655.9,1.49553688]
[1739119510953,5.16597485,2656.3,2656.0,0.0056443]
[1739119511556,5.16597485,2656.3,2656.1,1.49553688]
[1739119512056,5.16597485,2656.3,2656.1,2.08423688]
[1739119513758,0.0056443,2656.4,2656.1,2.08423688]
[1739119513958,0.0056443,2656.4,2656.3,1.49553688]
[1739119516652,0.0056443,2656.4,2656.3,4.70333688]
[1739119516850,0.0056443,2656.4,2656.3,10.70333688]
[1739119517051,0.5445,2657.0,2656.3,10.70333688]
[1739119517250,1.658,2657.1,2656.9,1.49553688]
[1739119517460,1.658,2657.1,2656.9,42.29553688]
[1739119517666,1.658,2657.1,2656.9,1.49553688]
[1739119517954,0.5445,2657.3,2656.9,1.49553688]
[1739119518162,0.5501443,2657.3,2657.0,1.49553688]
[1739119518457,4.11882895,2657.2,2657.0,1.49553688]
[1739119519248,1.49553688,2657.1,2656.7,4.70333688]
[1739119519456,3.2078,2656.9,2656.7,1.49553688]
[1739119519659,0.5926,2656.8,2656.3,3.34376984]
[1739119519859,5.22066388,2656.8,2656.3,3.34376984]
[1739119522863,4.67416388,2656.8,2656.6,3.34376984]
[1739119523062,1.658,2656.9,2656.7,0.556]
[1739119523356,1.658,2656.9,2656.8,0.5468]
[1739119523559,1.6626443,2657.3,2656.8,0.5468]
[1739119523766,1.6626443,2657.3,2656.9,3.34376984]
[1739119524262,4.20747052,2657.2,2656.9,3.34376984]
[1739119524965,7.41527052,2657.2,2656.7,0.556]
[1739119525459,1.1473,2657.1,2656.7,0.556]
[1739119525665,0.6038,2657.0,2656.7,0.556]
[1739119525964,4.6092488,2657.0,2656.7,0.556]
[1739119526161,4.6092488,2657.0,2656.5,6.1678]
[1739119526360,4.6092488,2657.0,2656.5,2.96]
[1739119528165,4.6092488,2657.0,2656.4,1.132]
[1739119528461,3.2078,2656.9,2656.4,1.132]
[1739119528964,4.33437509,2656.8,2656.4,1.132]
[1739119529364,0.5709,2656.7,2656.4,1.132]
[1739119535467,4.33437509,2656.8,2656.6,3.34376984]
[1739119536264,3.96167694,2656.9,2656.6,3.34376984]
[1739119536875,1.2008,2657.0,2656.6,3.34376984]
[1739119537073,4.18258967,2656.9,2656.6,3.34376984]
[1739119543275,4.18258967,2656.9,2656.7,0.6031]
[1739119543778,4.18258967,2656.9,2656.8,0.5922]
[1739119547584,4.18258967,2656.9,2656.8,2.08838903]
[1739119555283,3.2134443,2657.3,2656.8,3.58457806]
[1739119555586,1.657,2657.2,2656.9,0.5861]
[1739119556788,2.2144,2657.2,2656.9,0.5861]
[1739119557180,2.2144,2657.2,2657.1,1.49618903]
[1739119557381,2.7742,2657.2,2657.1,1.49618903]
[1739119557683,7.4631775,2657.2,2657.1,1.49618903]
[1739119561493,5.7958775,2657.2,2657.1,1.49618903]
[1739119563891,4.1388775,2657.2,2657.1,1.49618903]
[1739119565389,5.2832775,2657.2,2657.1,1.49618903]
[1739119567494,5.8652775,2657.2,2657.1,1.49618903]
[1739119568088,5.8652775,2657.2,2656.9,1.49618903]
[1739119569594,0.0056443,2657.3,2657.1,1.49618903]
[1739119569792,0.0056443,2657.3,2657.2,1.6605]
[1739119571700,0.0056443,2657.3,2657.2,5.00231573]
[1739119574187,4.30127336,2657.3,2656.9,6.54961573]
[1739119574391,1.1542,2657.2,2656.9,6.54961573]
[1739119574598,1.7418,2657.2,2656.9,6.54961573]
[1739119574793,4.16331224,2657.1,2656.9,6.54961573]
[1739119575599,4.16331224,2657.1,2657.0,0.592]
[1739119576896,4.16331224,2657.1,2657.0,1.1401]
[1739119579794,4.16331224,2657.1,2657.0,1.7018]
[1739119582694,0.0056443,2657.3,2657.0,1.7018]
[1739119582888,0.0056443,2657.3,2657.2,3.34181573]
[1739119583491,0.5772,2657.9,2657.2,6.54961573]
[1739119583701,0.5772,2657.9,2657.7,3.34181573]
[1739119583894,0.5772,2657.9,2657.8,0.5725]
[1739119584198,4.7757989,2657.9,2657.8,0.5725]
[1739119587098,3.2134443,2658.1,2657.8,0.5725]
[1739119587291,3.2134443,2658.1,2657.9,0.577]
[1739119587799,0.0056443,2658.1,2658.0,3.34181573]
[1739119588096,0.0056443,2658.1,2658.0,3.92611573]
[1739119588401,3.7766,2658.8,2658.0,3.92611573]
[1739119588694,8.34993356,2658.8,2658.4,3.34181573]
[1739119588894,8.34993356,2658.8,2658.5,0.5741]
[1739119589998,8.34993356,2658.8,2658.4,3.34181573]
[1739119595402,8.34993356,2658.8,2658.5,0.5532]
[1739119598305,8.34993356,2658.8,2658.4,3.34181573]
[1739119599806,5.14213356,2658.8,2658.4,3.34181573]
[1739119600009,5.14213356,2658.8,2658.5,0.6038]
[1739119600306,5.14213356,2658.8,2658.5,1.1979]
[1739119600500,1.1725,2658.8,2658.5,1.1979]
[1739119606705,1.1725,2658.8,2658.7,3.34181573]
[1739119606904,0.0056443,2658.9,2658.7,3.34181573]
[1739119607204,0.0056443,2658.9,2658.8,0.5929]
[1739119611105,0.0056443,2658.9,2658.7,6.54961573]
[1739119612399,0.0056443,2658.9,2658.0,40.8]
[1739119612400,3.99713986,2658.8,2658.4,3.34181573]
[1739119612604,1.7097,2658.7,2658.4,3.34181573]
[1739119613005,4.11105483,2658.6,2658.4,3.34181573]
[1739119619611,4.11105483,2658.6,2658.3,3.2078]
[1739119621321,4.11105483,2658.6,2658.1,3.91071573]
[1739119622517,4.11105483,2658.6,2658.4,3.34181573]
[1739119622810,4.11105483,2658.6,2658.5,0.5728]
[1739119623321,4.11105483,2658.6,2658.3,3.2078]
[1739119624019,4.11105483,2658.6,2658.4,3.91461573]
[1739119624208,3.2078,2658.8,2658.4,5.02961573]
[1739119624406,3.2078,2658.8,2658.7,3.34181573]
[1739119624610,0.0056443,2658.9,2658.7,3.34181573]
[1739119624918,0.0056443,2658.9,2658.8,0.568]
[1739119627713,0.0056443,2658.9,2658.6,3.2078]
[1739119627913,4.22784999,2658.9,2658.6,3.2078]
[1739119628413,0.5929,2658.8,2658.6,3.2078]
[1739119628610,0.5796,2658.7,2658.6,3.2078]
[1739119628814,1.1729,2658.7,2658.6,3.2078]
[1739119629323,1.1729,2658.7,2658.5,0.5839]
[1739119629619,5.46673388,2658.7,2658.4,3.34181573]
[1739119629813,5.46673388,2658.7,2658.2,4.3761]
[1739119630012,7.11973388,2658.7,2658.2,4.3761]
[1739119630410,0.52648,2658.5,2658.2,3.2078]
[1739119630720,0.5929,2658.4,2657.9,3.2078]
[1739119630923,0.5929,2658.4,2657.8,3.34181573]
[1739119631313,0.5929,2658.4,2657.8,3.90891573]
[1739119631727,4.56878568,2658.4,2657.8,3.90891573]
[1739119632816,4.56878568,2658.4,2658.1,3.34181573]
[1739119633016,3.97588568,2658.4,2658.2,0.545]
[1739119633213,3.97588568,2658.4,2657.8,3.2078]
[1739119633214,3.97588568,2658.4,2657.8,6.54961573]
[1739119633815,3.2078,2658.5,2657.8,6.54961573]
[1739119634009,4.26619891,2658.4,2657.8,6.54961573]
[1739119635226,4.79270891,2658.4,2657.8,6.54961573]
[1739119635727,4.26619891,2658.4,2657.8,6.54961573]
[1739119636423,4.26619891,2658.4,2657.9,0.5939]
[1739119638125,4.26619891,2658.4,2658.0,0.5875]
[1739119638513,4.26619891,2658.4,2658.1,0.5506]
[1739119638719,4.26619891,2658.4,2658.1,3.89241573]
[1739119639426,1.653,2658.5,2658.1,3.89241573]
[1739119639627,4.1663683,2658.4,2658.0,0.5875]
[1739119639827,4.1663683,2658.4,2657.8,6.54961573]
[1739119644126,4.6928683,2658.4,2657.8,6.54961573]
[1739119644529,4.1663683,2658.4,2657.8,6.54961573]
[1739119645731,4.6928683,2658.4,2657.8,6.54961573]
[1739119646429,0.6013,2658.3,2657.8,6.54961573]
[1739119646621,1.72454,2658.2,2657.8,3.2078]
[1739119646825,5.46567565,2658.2,2657.8,3.2078]
[1739119647830,8.67347565,2658.2,2657.6,0.0056443]
[1739119648222,9.20002565,2658.2,2657.6,0.0056443]
[1739119648628,8.67347565,2658.2,2657.6,0.0056443]
[1739119648836,9.20002565,2658.2,2657.6,0.0056443]
[1739119649330,8.67347565,2658.2,2657.6,0.0056443]
[1739119650833,1.653,2658.1,2657.8,3.34181573]
[1739119651032,1.653,2658.1,2657.9,1.1006]
[1739119651231,4.13303771,2658.0,2657.9,1.1006]
[1739119652132,4.13303771,2658.0,2657.9,1.676]
[1739119652332,1.653,2658.1,2657.9,1.676]
[1739119652637,1.653,2658.3,2657.9,1.676]
[1739119652839,1.707,2658.8,2658.1,3.34181573]
[1739119653029,1.653,2658.7,2658.1,3.34181573]
[1739119653238,4.25393114,2658.4,2658.1,3.34181573]
[1739119653536,1.653,2658.7,2658.1,3.34181573]
[1739119653537,4.25393114,2658.6,2658.1,3.34181573]
[1739119653734,1.653,2658.7,2658.1,3.34181573]
[1739119654138,4.23206728,2658.6,2658.1,3.34181573]
[1739119655237,4.23206728,2658.6,2658.1,6.54961573]
[1739119656744,1.653,2658.5,2658.1,6.54961573]
[1739119657246,4.27722846,2658.7,2658.1,6.54961573]
[1739119657546,1.707,2658.8,2658.1,6.54961573]
[1739119657547,1.653,2658.6,2658.1,6.54961573]
[1739119658048,1.1217,2658.8,2658.4,3.34181573]
[1739119658239,2.7747,2658.8,2658.5,1.7441]
[1739119658440,4.34490354,2658.7,2658.5,1.7441]
[1739119658845,4.34490354,2658.7,2658.1,3.2078]
[1739119659044,3.7987,2658.6,2658.1,3.7881]
[1739119659548,4.11065298,2658.5,2658.1,3.7881]
[1739119660048,0.5719,2658.4,2658.1,3.7881]
[1739119660241,0.5708,2658.3,2658.1,3.7881]
[1739119660547,4.75276999,2658.3,2658.1,3.7881]
[1739119661047,6.40576999,2658.3,2658.1,3.7881]
[1739119665645,6.40576999,2658.3,2658.1,3.2078]
[1739119669657,4.75276999,2658.3,2658.1,3.2078]
[1739119669857,6.40576999,2658.3,2658.1,3.2078]
[1739119670059,5.83496999,2658.3,2658.1,3.2078]
[1739119672053,4.18196999,2658.3,2658.1,6.54961573]
[1739119672257,1.653,2658.8,2658.1,6.54961573]
[1739119672458,0.0056443,2658.9,2658.4,6.54961573]
[1739119672657,0.0056443,2658.9,2658.5,1.7618]
[1739119672846,4.33790413,2658.8,2658.5,1.7618]
[1739119673050,4.33790413,2658.8,2658.7,3.34181573]
[1739119673250,0.0056443,2658.9,2658.7,3.34181573]
[1739119675853,0.0056443,2658.9,2658.8,3.2078]
[1739119676057,2.914,2659.6,2658.8,3.2078]
[1739119676260,3.2078,2659.8,2659.2,3.34181573]
[1739119676449,1.653,2659.7,2659.3,1.1408]
[1739119676656,4.32209252,2659.4,2659.3,1.1408]
[1739119677058,4.32209252,2659.5,2659.3,1.1408]
[1739119677363,0.00370364,2659.6,2659.4,3.2078]
[1739119677558,0.00370364,2659.6,2659.5,3.34181573]
[1739119687967,4.07558599,2659.6,2659.1,3.2134443]
[1739119688168,4.3513,2659.5,2659.1,0.0056443]
[1739119688472,2.2388,2659.4,2659.1,0.0056443]
[1739119688667,6.31068235,2659.4,2659.1,0.0056443]
[1739119692876,4.65868235,2659.4,2659.1,0.0056443]
[1739119693173,1.652,2659.3,2659.1,0.0056443]
[1739119693576,3.94583281,2659.2,2659.1,0.0056443]
[1739119697878,1.652,2659.3,2659.1,0.0056443]
[1739119699380,4.00930814,2659.2,2659.1,0.0056443]
[1739119699979,7.21710814,2659.2,2659.1,0.0056443]
[1739119703186,8.86910814,2659.2,2659.1,0.0056443]
[1739119703382,4.00930814,2659.2,2659.1,0.0056443]
[1739119709884,3.754,2659.5,2659.1,0.0056443]
[1739119710085,0.00370364,2659.6,2659.2,3.34181573]
[1739119710292,0.00370364,2659.6,2659.3,0.5632]
[1739119710490,4.0841465,2659.5,2659.3,0.5632]
[1739119710695,4.0841465,2659.5,2659.4,0.5585]
[1739119710887,0.00370364,2659.6,2659.4,3.7663]
[1739119711090,0.00370364,2659.6,2659.5,3.89931573]